Workbook

Sheet DPW-WH-2021
A1: DPW-WENTWORTH HOSPITAL-TENDER BOQ
A2: SECTION NO. | B2: BILL NO. | C2: PAGE NO. | D2: ITEM NO. | E2: DESCRIPTION | F2: UNIT | G2: QUANTITY | H2: RATE | I2: AMOUNT
A3: 1 | B3: 1 | C3: 1 | E3: SECTION NO. 1 | F3: H1
A4: 1 | B4: 1 | C4: 1 | E4: BILL NO. 1 | F4: H1
A5: 1 | B5: 1 | C5: 1 | E5: PRELIMINARIES | F5: H1
A6: 1 | B6: 1 | C6: 1 | E6: PRELIMINARY AND GENERAL | F6: H1
A7: 1 | B7: 1 | C7: 1 | E7: NOTES | F7: H1
A8: 1 | B8: 1 | C8: 1 | E8: i) The agreement is to be the General Conditions of Contract for Works of Civil Engineering Construction (2010) (Second Edition), published by the S.A. Institution Of Civil Engineering.
A9: 1 | B9: 1 | C9: 1 | E9: ii) The Preliminaries are to be the Construction and management requirements for works contracts - Part 1: General engineering and construction works (SANS 1921-1: 2004 Edition 1) prepared by Standards South Africa and shall be deemed to be incorporated herein.
A10: 1 | B10: 1 | C10: 1 | E10: iii) Tenderers are referred to the abovementioned documents for the full intent and meaning of each clause thereof (hereinafter referred to by heading and clause number only) for which such allowance must be made as may be considered necessary.
A11: 1 | B11: 1 | C11: 1 | E11: iv) Where standard clauses or alternatives are not entirely applicable to this contract such modifications, corrections or supplements as will apply are given under each relevant clause heading.
A12: 1 | B12: 1 | C12: 1 | E12: v) Where any item is not relevant to this specific contract such item is marked N/A (signifying "not applicable").
A13: 1 | B13: 1 | C13: 1 | E13: vi) Adjustment of the preliminaries: each item priced, is to be allocated to one or more of the three categories, where "F" denotes a fixed amount (amount not to be varied), "V" denotes an amount variable in proportion to value and "T" denotes an amount in proportion to time.
A14: 1 | B14: 1 | C14: 1 | E14: vii) Time (T) related Preliminaries will only be adjusted for ommissions or additions, issued by the Employer, or delays caused by the Employer, for which variation and extension of time has been granted.
A15: 1 | B15: 1 | C15: 1 | E15: The Tenderer is referred to the relevant Preambles in the KwaZulu-Natal Department of Health Standard Preambles to all Trades Rev. 3 January 2009, Supplementary Preambles, Supplementary Specifications, etc. incorporated within the Tender Documents.
A16: 1 | B16: 1 | C16: 2 | E16: Supplementary preambles are incorporated in these bills of quantities to satisfy the requirements of this project such supplementary preambles shall take precedence over the provisions of the said Model Preambles.
A17: 1 | B17: 1 | C17: 2 | E17: The contractor's prices for all items throughout these bills of quantities must take account of and include for all of the obligations, requirements and specifications given in the said Model Preambles and in any supplementary preambles.
A18: 1 | B18: 1 | C18: 2 | E18: SECTION A: GENERAL CONDITIONS OF CONTRACT | F18: H2
A19: 1 | B19: 1 | C19: 2 | D19: 1 | E19: (clause 1) F:____________ V:____________ T:____________ | F19: Item | G19: 1 | I19: =G19*H19 -> 0
A20: 1 | B20: 1 | C20: 2 | D20: 2 | E20: Basis of contract (clause 2) F:____________ V:____________ T:____________ | F20: Item | G20: 1 | I20: =G20*H20 -> 0
A21: 1 | B21: 1 | C21: 2 | D21: 3 | E21: Engineer (clause 3) F:____________ V:____________ T:____________ | F21: Item | G21: 1 | I21: 0
A22: 1 | B22: 1 | C22: 2 | D22: 4 | E22: Contrators general obligations (clause 4) F:____________ V:____________ T:____________ | F22: Item | G22: 1 | I22: 0
A23: 1 | B23: 1 | C23: 2 | D23: 5 | E23: A5 Time and related matters (clause 5). F:____________ V:____________ T:____________ | F23: Item | G23: 1 | I23: 0
A24: 1 | B24: 1 | C24: 2 | D24: 6 | E24: Payment and related matters (clause 6) F:____________ V:____________ T:____________ | F24: Item | G24: 1 | I24: 0
A25: 1 | B25: 1 | C25: 2 | D25: 7 | E25: Quality and related matters (clause 7) F:____________ V:____________ T:____________ | F25: Item | G25: 1 | I25: 0
A26: 1 | B26: 1 | C26: 2 | D26: 8 | E26: Risks and related matters (clause 8) F:____________ V:____________ T:____________ | F26: Item | G26: 1 | I26: 0
A27: 1 | B27: 1 | C27: 2 | D27: 9 | E27: Terminations of contract (clause 9) F:____________ V:____________ T:____________ | F27: Item | G27: 1 | I27: 0
A28: 1 | B28: 1 | C28: 3 | D28: 10 | E28: Claims and disputes (clause 10) F:____________ V:____________ T:____________ | F28: Item | G28: 1 | I28: 0
A29: 1 | B29: 1 | C29: 3 | E29: SECTION B: SANS 1921-1:2004 (Edition 1): CONSTRUCTION AND MANAGEMENT REQUIREMENTS FOR WORKS CONTRACTS: PART 1 | F29: H2
A30: 1 | B30: 1 | C30: 3 | E30: Refer to the SCOPE OF WORK for detail requirements:
A31: 1 | B31: 1 | C31: 3 | D31: 11 | E31: Scope (clause 1) F:____________ V:____________ T:____________ | F31: Item | G31: 1 | I31: =G31*H31 -> 0
A32: 1 | B32: 1 | C32: 3 | D32: 12 | E32: Normative references (clause 2) F:____________ V:____________ T:____________ | F32: Item | G32: 1 | I32: 0
A33: 1 | B33: 1 | C33: 3 | D33: 13 | E33: Definitions (clause 3) F:____________ V:____________ T:____________ | F33: Item | G33: 1 | I33: 0
A34: 1 | B34: 1 | C34: 3 | D34: 14 | E34: Requirements for construction & management (clause 4) F:____________ V:____________ T:____________ | F34: Item | G34: 1 | I34: 0
A35: 1 | B35: 1 | C35: 3 | D35: 15 | E35: General (Clause 4.1) F:____________ V:____________ T:____________ | F35: Item | G35: 1 | I35: 0
A36: 1 | B36: 1 | C36: 3 | D36: 16 | E36: Responsibilities for design and construction (clause 4.2) F:____________ V:____________ T:____________ | F36: Item | G36: 1 | I36: 0
A37: 1 | B37: 1 | C37: 3 | D37: 17 | E37: Planning, programme and method statements (clause 4.3) F:____________ V:____________ T:____________ | F37: Item | G37: 1 | I37: 0
A38: 1 | B38: 1 | C38: 3 | D38: 18 | E38: Quality assurance (clause 4.4) F:____________ V:____________ T:____________ | F38: Item | G38: 1 | I38: 0
A39: 1 | B39: 1 | C39: 3 | D39: 19 | E39: Setting out (clause 4.5) F:____________ V:____________ T:____________ | F39: Item | G39: 1 | I39: 0
A40: 1 | B40: 1 | C40: 4 | D40: 20 | E40: Management and disposal of water (clause 4.6) F:____________ V:____________ T:____________ | F40: Item | G40: 1 | I40: 0
A41: 1 | B41: 1 | C41: 4 | D41: 21 | E41: Blasting (Clause 4.7) F:____________ V:____________ T:____________ | F41: Item | G41: 1 | I41: 0
A42: 1 | B42: 1 | C42: 4 | D42: 22 | E42: Works adjacent to services and structures (clause 4.8) F:____________ V:____________ T:____________ | F42: Item | G42: 1 | I42: 0
A43: 1 | B43: 1 | C43: 4 | D43: 23 | E43: Management of the Works and site (clause 4.9) F:____________ V:____________ T:____________ | F43: Item | G43: 1 | I43: 0
A44: 1 | B44: 1 | C44: 4 | D44: 24 | E44: Earthworks (clause 4.10) F:____________ V:____________ T:____________ | F44: Item | G44: 1 | I44: 0
A45: 1 | B45: 1 | C45: 4 | D45: 25 | E45: Testing (clause 4.11) F:____________ V:____________ T:____________ | F45: Item | G45: 1 | I45: 0
A46: 1 | B46: 1 | C46: 4 | D46: 26 | E46: Materials, samples and fabrication drawings (clause 4.12) F:____________ V:____________ T:____________ | F46: Item | G46: 1 | I46: 0
A47: 1 | B47: 1 | C47: 4 | D47: 27 | E47: Equipment (clause 4.13) F:____________ V:____________ T:____________ | F47: Item | G47: 1 | I47: 0
A48: 1 | B48: 1 | C48: 4 | D48: 28 | E48: Site establishment (clause 4.14) F:____________ V:____________ T:____________ | F48: Item | G48: 1 | I48: 0
A49: 1 | B49: 1 | C49: 4 | D49: 29 | E49: Survey control (clause 4.15) F:____________ V:____________ T:____________ As built survey information prepared by an engineering surveyor to be submitted upon request to the engineer. | F49: Item | G49: 1 | I49: 0
A50: 1 | B50: 1 | C50: 4 | D50: 30 | E50: Temporary works (clause 4.16) F:____________ V:____________ T:____________ | F50: Item | G50: 1 | I50: 0
A51: 1 | B51: 1 | C51: 5 | D51: 31 | E51: Existing services (clause 4.17) F:____________ V:____________ T:____________ The Contractor to ensure that temporary supplies for water and electricity (Externally sourced and not via the Hospital's connection) are available on site to meet the project demands and to achieve continuity of the works on site. | F51: Item | G51: 1 | I51: 0
A52: 1 | B52: 1 | C52: 5 | D52: 32 | E52: Health and safety (clause 4.18) F:____________ V:____________ T:____________ The Contractor shall provide all PPE requirements for all employees and visitors to the site, during the execution of the works. The Contractor to ensure that all costs relating to the Covid 19 regulations and guidelines are included in the tender price) | F52: Item | G52: 1 | I52: 0
A53: 1 | B53: 1 | C53: 5 | D53: 33 | E53: Environmental requirements (clause 4.19) F:____________ V:____________ T:____________ | F53: Item | G53: 1 | I53: 0
A54: 1 | B54: 1 | C54: 5 | D54: 34 | E54: Alterations, additions, extensions and modifications to existing works (clause 4.20) F:____________ V:____________ T:____________ | F54: Item | G54: 1 | I54: 0
A55: 1 | B55: 1 | C55: 5 | D55: 35 | E55: Inspection of adjoining structures, services, buildings and property (clause 4.21) F:____________ V:____________ T:____________ | F55: Item | G55: 1 | I55: 0
A56: 1 | B56: 1 | C56: 5 | D56: 36 | E56: Attendance on nominated and selected subcontractors (clause 22) F:____________ V:____________ T:____________ | F56: Item | G56: 1 | I56: 0
A57: 1 | B57: 1 | C57: 5 | E57: SECTION C: SCOPE OF WORK IN ACCORDANCE WITH SANS 10403 | F57: H1
A58: 1 | B58: 1 | C58: 5 | E58: (The reference to Clauses refer to Table B.1 of SANS 1921-1:2004)
A59: 1 | B59: 1 | C59: 6 | D59: 37 | E59: Certification by recognised bodies (clause 4.4) F:____________ V:____________ T:____________ The contractor shall provide all original certification of compliance in respect of all specialist installations and compliance testing as deemed necessary or as stipulated by the engineer.Payment will be withheld in the abscence of the provision of original compliance certificates. | F59: Item | G59: 1 | I59: =G59*H59 -> 0
A60: 1 | B60: 1 | C60: 6 | D60: 38 | E60: Agrément certificates (clause 4.5) F:____________ V:____________ T:____________ | F60: Item | G60: 1 | I60: 0
A61: 1 | B61: 1 | C61: 6 | D61: 39 | E61: Other services and facilities (clause 4.8) F:____________ V:____________ T:____________ | F61: Item | G61: 1 | I61: 0
A62: 1 | B62: 1 | C62: 6 | D62: 40 | E62: Recording of weather (clause 5.2) F:____________ V:____________ T:____________ A rain gauge shall be provided on site for the duration of the contract. A diary shall be maintained with all rainfall records and thereafter submitted to the engineer at every site meeting. | F62: Item | G62: 1 | I62: 0
A63: 1 | B63: 1 | C63: 6 | D63: 41 | E63: Management meetings (clause 5.3) F:____________ V:____________ T:____________ | F63: Item | G63: 1 | I63: 0
A64: 1 | B64: 1 | C64: 6 | D64: 42 | E64: Daily records (clause 5.6) F:____________ V:____________ T:____________ | F64: Item | G64: 1 | I64: 0
A65: 1 | B65: 1 | C65: 6 | D65: 43 | E65: Bond and guarantees (clause 5.7) F:____________ V:____________ T:____________ | F65: Item | G65: 1 | I65: 0
A66: 1 | B66: 1 | C66: 6 | D66: 44 | E66: Permits (clause 5.9) F:____________ V:____________ T:____________ | F66: Item | G66: 1 | I66: 0
A67: 1 | B67: 1 | C67: 6 | D67: 45 | E67: Proof of compliance with the law (clause 5.10) F:____________ V:____________ T:____________ | F67: Item | G67: 1 | I67: 0
A68: 1 | B68: 1 | C68: 7 | E68: SECTION D: SPECIFICATION DATA ASSOCIATED WITH SANS 1921-1:2004 (Table A.1) | F68: H1
A69: 1 | B69: 1 | C69: 7 | D69: 46 | E69: Requirements for drawings, information and calculations for which the contractor is responsible (clause 4.1.7) F:____________ V:____________ T:____________ | F69: Item | G69: 1 | I69: =G69*H69 -> 0
A70: 1 | B70: 1 | C70: 7 | D70: 47 | E70: The responsibility strategy assigned to the contractor for the works (clause 4.2.1) F:____________ V:____________ T:____________ | F70: Item | G70: 1 | I70: 0
A71: 1 | B71: 1 | C71: 7 | D71: 48 | E71: The planning, programme and method statements (clause 4.3) F:____________ V:____________ T:____________ | F71: Item | G71: 1 | I71: 0
A72: 1 | B72: 1 | C72: 7 | D72: 49 | E72: Samples of materials, workmanship and finishes (clause 4.12.1) F:____________ V:____________ T:____________ | F72: Item | G72: 1 | I72: 0
A73: 1 | B73: 1 | C73: 7 | D73: 50 | E73: Fabrication drawings that the contractor is to provide and deliver to the employer (clause 4.12.2) F:____________ V:____________ T:____________ | F73: Item | G73: 1 | I73: 0
A74: 1 | B74: 1 | C74: 7 | D74: 51 | E74: F:____________ V:____________ T:____________ | F74: Item | G74: 1 | I74: 0
A75: 1 | B75: 1 | C75: 7 | D75: 52 | E75: Telephone (clause 4.14.3) F:____________ V:____________ T:____________ | F75: Item | G75: 1 | I75: 0
A76: 1 | B76: 1 | C76: 7 | D76: 53 | E76: Office for inspector of works (clause 4.14.3) F:____________ V:____________ T:____________ | F76: Item | G76: 1 | I76: 0
A77: 1 | B77: 1 | C77: 7 | D77: 54 | E77: Telephone in office for inspector of works (clause 4.14.3) F:____________ V:____________ T:____________ | F77: Item | G77: 1 | I77: 0
A78: 1 | B78: 1 | C78: 7 | D78: 55 | E78: Sheds (clause 4.14.3) F:____________ V:____________ T:____________ | F78: Item | G78: 1 | I78: 0
A79: 1 | B79: 1 | C79: 8 | D79: 56 | E79: Provision and erection of signboards (clause 4.14.6) F:____________ V:____________ T:____________ | F79: Item | G79: 1 | I79: 0
A80: 1 | B80: 1 | C80: 8 | D80: 57 | E80: Termination, diversion or maintenance of existing services (clause 4.17.1) F:____________ V:____________ T:____________ | F80: Item | G80: 1 | I80: 0
A81: 1 | B81: 1 | C81: 8 | D81: 58 | E81: Services which are known to exist (clause 4.17.3) F:____________ V:____________ T:____________ | F81: Item | G81: 1 | I81: 0
A82: 1 | B82: 1 | C82: 8 | D82: 59 | E82: Detection apparatus (clause 4.17.4) F:____________ V:____________ T:____________ | F82: Item | G82: 1 | I82: 0
A83: 1 | B83: 1 | C83: 8 | D83: 60 | E83: Additional health and safety requirements (clause 4.18) F:____________ V:____________ T:____________ | F83: Item | G83: 1 | I83: 0
A84: 1 | B84: 1 | C84: 8 | E84: SECTION E: SPECIFIC PRELIMINARIES | F84: H1
A85: 1 | B85: 1 | C85: 8 | E85: Section E contains Specific Preliminary items which apply to this contract except where "N/A" ( Not Applicable) appears against the item.
A86: 1 | B86: 1 | C86: 8 | D86: 61 | E86: PROPRIETARY BRANDED PRODUCTS The tenderer shall take delivery of, handle, store, use apply and/or fix all proprietary branded products in strict accordance with the manufacturers' instruction after consultation with the manufacturer's authorised representative.F:____________ V:____________ T:____________ | F86: Item | G86: 1 | I86: =G86*H86 -> 0
A87: 1 | B87: 1 | C87: 8 | D87: 62 | E87: OVERTIME Should overtime be required to be worked for any reason whatsoever, the costs of such overtime are to be borne by the Contractor unless the Engineer has specifically authorised in writing, prior to the execution thereof, that costs for such overtime are to be borne by the Employer.F:____________ V:____________ T:____________ | F87: Item | G87: 1 | I87: 0
A88: 1 | B88: 1 | C88: 9 | D88: 63 | E88: AS BUILT DRAWINGS The position of construction breaks and the extent of individual concrete pours are to be recorded by the contractor on the Structural Engineer's drawings and are to be submitted to the Engineer for their records. F:____________ V:____________ T:____________ | F88: Item | G88: 1 | I88: 0
A89: 1 | B89: 1 | C89: 9 | D89: 64 | E89: SITE INSTRUCTIONS Site instructions issued on site are to be recorded in triplicate in a site instruction book which is to be maintained on site by the contractor. F:____________ V:____________ T:____________ | F89: Item | G89: 1 | I89: 0
A90: 1 | B90: 1 | C90: 9 | D90: 65 | E90: LABOUR RECORD At the end of each week for the full duration of the contract, the contractor shall provide the Engineer with a written record, in schedule form, reflecting the number and description of tradesmen and labourers employed by him and all sub-contractors on the works each day. The contractor shall provide the completed local labour forms , records and schedules together with all supporting documentation ( certified ID copies , employee details, wage rates, proof of payment , period of employment, employment contracts, etc). The client reserves the right to conduct random inspections on site to verify the local labour employed on the project.F:____________ V:____________ T:____________ | F90: Item | G90: 1 | I90: 0
A91: 1 | B91: 1 | C91: 9 | D91: 66 | E91: PLANT RECORD At the end of each week the Contractor shall provide the Engineer with a written record, in schedule form, reflecting the number, type and capacity of all plant, excluding hand tools, currently used on the works.F:____________ V:____________ T:____________ | F91: Item | G91: 1 | I91: 0
A92: 1 | B92: 1 | C92: 9 | D92: 67 | E92: NON CESSION OF MONIES The Contractor shall not cede nor assign his rights or claims to any monies due or to become due under this contract.F:____________ V:____________ T:____________ | F92: Item | G92: 1 | I92: 0
A93: 1 | B93: 1 | C93: 10 | D93: 68 | E93: SECTIONAL COMPLETION It is required that the contract be executed in sections or portions, the Tenderer shall allow for all costs in this regard as no claim for additional costs will be entertained The tenderer to refer to the attached phasing and decanting plan in this regard.F:____________ V:____________ T:____________ | F93: Item | G93: 1 | I93: 0
A94: 1 | B94: 1 | C94: 10 | D94: 69 | E94: IMPORT PERMITS AND DUTIES The responsibility for obtaining the necessary import permits shall rest with the successful Tenderer. No foreign exchange will be arranged or provided by the Administration. Tenderers are to allow in their tenders and pay the ordinary levy imposed on imported items in terms of item 196.10 of Part 8 of Schedule No. 1 of the Customs and Excise Act, 1964 with effect from 1 October 1989. F:____________ V:____________ T:____________ | F94: Item | G94: 1 | I94: 0
A95: 1 | B95: 1 | C95: 10 | D95: 70 | E95: CONTRACT PRICE ADJUSTMENT PROVISIONS (CPAP) - This Contract will be subject to contract price adjustment. F:____________ V:____________ T:____________ | F95: Item | G95: 1 | I95: 0
A96: 1 | B96: 1 | C96: 10 | E96: EXPANDED PUBLIC WORKS PROGRAMME (EPWP) CONDITIONS AND SPECIFICATIONS
A97: 1 | B97: 1 | C97: 10 | E97: 11.1 EMPLOYMENT TARGETS
A98: 1 | B98: 1 | C98: 10 | E98: E11.1 a. Employment Targets
A99: 1 | B99: 1 | C99: 11 | D99: 71 | E99: The Contractor needs to provide a realistic estimate on the number of jobs that the project has the potential to create throughout the project duration, as the project will be implemented using Labour Intensive Construction methods on elements where it is economical and feasible. No. of jobs estimated to be created equals to a minimum of 140 unskilled labour for the duration of the project, either by being employed by the main or subcontrator. It is a general requirement of this contract that persons normally resident in the ward of the works (local labour) be given preference for employment on the contract. Provided, however, that should adequate and appropriate labour not be available within the ward, others may be employed subject to satisfactory proof being provided that every reasonable endeavour has been made to employ local labour (Local Sub-contractor(s); Skilled; Semi-Skilled and Unskilled). The Contractor shall in consultation with the local community leaders (Project Steering Committee) with the purpose of negotiating with them regarding the utilization of local resources in the construction process. In this regard, the Contractor shall furthermore give preference, wherever possible to the employment of single heads of households, women and youth as well as families declared as most indigent by War on Poverty/ Sukuma Sakhe programme profiling process. The Contractor should aim, in general, to maximise the involvement of the local community, however workers from other communities should not exceed 20% of all persons working on the project, where local Employees possess skills at a level of competency that meets Contractor's requirements. F:_____________ V:_____________ T:_____________ | F99: Item | G99: 1 | I99: =G99*H99 -> 0
A100: 1 | B100: 1 | C100: 11 | E100: E11.1 b. Employment Requirements
A101: 1 | B101: 1 | C101: 11 | D101: 72 | E101: Tenderers are advised that this contract will be subject to the Expanded Public Works Program (EPWP) aimed at alleviating and reducing unemployment. Tenderers must allow for any costs for the following employment requirements of the EPWP; 1. 60% of unskilled labour to be women 2. 55% of the unskilled labour to be youth aged between 18 and 35 years 3. 2% of the unskilled labour to be people with disabilities 100% Unskilled labour utilised must reside within the boundaries of the Municipality ward where this contract is executed, with preference to the local community closest or at a walking distance to the contract site. Wherever possible, local skilled tradesmen are to be employed on this contract with the view to maximize utilization of local resources. F:_____________ V:_____________ T:_____________ | F101: Item | G101: 1 | I101: =G101*H101 -> 0
A102: 1 | B102: 1 | C102: 12 | D102: 73 | E102: E11.1 c. Labour Rate and Payment Intervals The Contractor should ensure that labour rate paid to unskilled local labour is commensurate to the daily task. When determining the rate, consideration should be given to that EPWP beneficiaries are mostly bread winners in their families, as the program intends alleviating poverty. There should also be consideration that the labour rate promotes creation of expanded number of jobs created and person days of work. Contractors should make endeavours to ensure that labourers, particularly unskilled are remunerated on a fortnight basis and prior notification be made should there be a shortfall on their wages. The labour rate for local unskilled shall also be determined in consideration of the location of the project, i.e. projects implemented in urbanized municipalities will not be the same as that for rural municipalities. F:_____________ V:_____________ T:_____________ | F102: Item | G102: 1 | I102: 0
A103: 1 | B103: 1 | C103: 12 | E103: 11.2 LABOUR INTENSIVE CONSTRUCTION METHOD
A104: 1 | B104: 1 | C104: 12 | E104: E11.2 a Labour Intensive Construction Method
A105: 1 | B105: 1 | C105: 13 | D105: 74 | E105: Those parts of the contract to be constructed using Labour Intensive methods will be marked in the Bill of Quantity with letter LI (indicating Labour Intensive) against every item so designated. Such works will only be constructed using the method so indicated. Reference to be made to Guidelines for the implementation of Labour Intensive Infrastructure projects under EPWP. "Scope of Work in Respect of Work Relating to the Expanded Public Works Programme (EPWP)"Labour Intensive ComponentDue to the nature of the work involved, this type of project lends itself to be feasible as a labour Intensive project i.e. the construction activities will indeed require skilled/unskilled labour. The aim of the projects is to provide some form of economic benefit whilst generating and increasing the acquired skills shortage to improve sustainability in the local area. The following are potential focus areas where employment creation can be optimized per project:(i)
A106: 1 | B106: 1 | C106: 13 | E106: E11.3 RECORD KEEPING
A107: 1 | B107: 1 | C107: 13 | D107: 75 | E107: 11.3.1 Every Employer must keep in the project site office the following; minutes of site progress meetings; Contractors’ monthly site progress reports; accurately recorded attendance register; proof of payment as means to verify authenticity of data in the EPWP beneficiary form submitted with payment certificates. Copies of submitted EPWP beneficiary data forms should also be kept in the site office. F:_____________ V:_____________ T:_____________ | F107: Item | G107: 1 | I107: =G107*H107 -> 0
A108: 1 | B108: 1 | C108: 14 | D108: 76 | E108: 11.3.2 The Employer must keep this record for a period of at least three (3) years after the completion of the project in his/her office as the project site office would have been relocated.This should be safely kept for job creation data verifications and periodical audits on projects conducted by National and Provincial Department of Public Works after one (1) or two (2) quarters of submitting captured EPWP data to the National EPWP co-ordinating Department. F:_____________ V:_____________ T:_____________ | F108: Item | G108: 1 | I108: 0
A109: 1 | B109: 1 | C109: 14 | E109: E11.4 EPWP MONTHLY REPORTING DOCUMENTS
A110: 1 | B110: 1 | C110: 14 | D110: 77 | E110: At the end of each month the Contractor must submit:EPWP monthly data collection formWorker monthly payment upload Worker monthly acknowledgement of receipt of payment Worker monthly Payment register Worker monthly training formMonthly attendance RegisterWorker Monthly pay slips Unskilled labour certified ID copies (once off)Beneficiary ID-size photosProof of UIF Proof of COIDAF:_____________ V:_____________ T:_____________ | F110: Item | G110: 1 | I110: =G110*H110 -> 0
A111: 1 | B111: 1 | C111: 14 | E111: E11.5 EPWP PROMOTION
A112: 1 | B112: 1 | C112: 14 | E112: 11.5.1. EPWP signage board
A113: 1 | B113: 1 | C113: 14 | D113: 78 | E113: EPWP Program at the project level shall always be promoted through the provision of projects signage board that embraces EPWP logo at the bottom, correct measurement for this sign board will be provided by the project leader during the site handing over meeting. F:_____________ V:_____________ T:_____________ | F113: Item | G113: 1 | I113: =G113*H113 -> 0
A114: 1 | B114: 1 | C114: 14 | E114: 11.5.2 Branding of labour apparel
A115: 1 | B115: 1 | C115: 15 | D115: 79 | E115: Contractor & Sub-contractors’ labourers shall be provided with EPWP branded Personal Protective Equipment (PPE), reflector vest with EPWP acronym at the back as an ideal and cost effective means of promoting the program on site. The Contractor is advised to price for both items 11.5.1 and 11,5.2 F:_____________ V:_____________ T:_____________ | F115: Item | G115: 1 | I115: =G115*H115 -> 0
A116: 1 | B116: 1 | C116: 15 | E116: E11.6 COMMUNITY LIAISON OFFICER (CLO)
A117: 1 | B117: 1 | C117: 15 | E117: UTILISATION OF A COMMUNITY LIAISON OFFICER
A118: 1 | B118: 1 | C118: 15 | E118: The Contractor shall allow for and pay any and all costs necessary for the engagement of the services of a Community Liaison Officer (CLO) for the full duration of this contract. A CLO will be identified by the local structures (Project Steering Committee) of the ward areas and appointed, following fair and transparent interviewing process, to be conducted in the presence of local structures and the Contractor representative, in order to assist the Contractor in the procurement of any local labour, etc. required for this project. The Contractor is to liaise with the CLO and afford him any assistance needed in ensuring sound working relations with the local community.
A119: 1 | B119: 1 | C119: 16 | E119: Key responsibilities of the CLO are envisaged to include and not necessarily be limited to: 1. Assisting local leadership in conducting skills and resources audit which facilitates sourcing labour from within the ward or targeted areas for employment, as required by Contractor. 2. Assisting in sourcing labour-only domestic Sub-contractors and the procurement of materials from local resources, as required by the Contractor. 3. Assisting the Contractor by identifying areas of potential conflict and or threats to the project or to stakeholders in the project and recommend appropriate action to the Contractor. 4. Assisting Contractor and stakeholders in the project in the resolution of any conflicts which may arise. 5. Establishing and ensuring that sufficient and open communication channels between the Contractor and the work force are maintained. 6. Establish and ensuring that efficient and open communication channels between the Contractor and the community are maintained. 7. Identifying and reporting to the Contractor regarding issues where communication between stakeholder is necessary, recommend courses of action and facilitate such communications. 8. Assisting the Contractor and the workforce in the establishment of grievance procedures and necessary recommendations to the Contractor regarding the grievances and solution thereto. 9. Attending to site meetings and project implementation meetings as required by the Contractor and preparing periodic reports as may be required by the Contractor, from time to time. 10. Attending to such other duties which are consistent with the functions of a CLO, as may be required by the Contractor, from time to time.
A120: 1 | B120: 1 | C120: 16 | D120: 80 | E120: Tenderers are to price twice the rate of unskilled local labour rate for the Community Liason Officer (CLO) against this item for any and all costs arising out of compliance with the foregoing and in the event of a Tenderer failing to price against this item or making inadequate financial provision against this item for compliance as aforesaid, then no claim for costs or additional cost incurred will be entertained by the Head: Public Works. F:_____________ V:_____________ T:_____________ | F120: Item | G120: 1 | I120: =G120*H120 -> 0
A121: 1 | B121: 1 | C121: 17 | E121: E11.7 SKILLS DEVELOPMENT ON SITE
A122: 1 | B122: 1 | C122: 17 | D122: 81 | E122: The Contractor is conforming to the objectives of EPWP if his beneficiaries are capacitated with skills that will render them employable in the future. It is then the responsibility of the Contractor that mandatory life skills are provided to 100% of workforce on site and on the job training to labourers from whom the potential for further development has been identified. The latter is not mandatory to all as it covers technical skills. The Contractor should also make provision for the possibility that there might be local youth that will need to be placed on the project with an intention to be provided support towards improving their level of competency and productivity. The Contractor shall also provide all necessary on-the-job training to targeted labour to enable such labour to master and advance on techniques required to undertake the work in accordance with requirements of the contract in a manner that does not compromise workers health and safety. F:_____________ V:_____________ T:_____________ | F122: Item | G122: 1 | I122: =G122*H122 -> 0
A123: 1 | B123: 1 | C123: 17 | E123: E11.8 SUB-CONTRACTING FOR LOCAL EMERGING ENTERPRISES
A124: 1 | B124: 1 | C124: 18 | E124: The project can support the notion of one main contractor to be appointed whilst several subcontractors, possibly from the local Small, Medium and Micro Enterprises (SMME) group, are employed to undertake various smaller activities. Subcontracting must be concentrated on businesses in the local community and subcontractors must be CIDB registered.Two alternatives can be applied for setting out work for sub-contractors, i.e. full responsibility (provide their own plant, materials and labour) or secondly the main contractor remains responsible for the supply of plant and materials, while the sub-contractor is responsible for implementation, thus providing the skills and labour content only for the various construction activities.The contractor will be required to appoint a reasonable number of local (within a 50km radius of the construction site) emerging sub-contractors to undertake work to the minimum of 30% of the contract value on the various service areas but not limited to the following services:General Building Works:Masonry Carpentry and Joinery Floor FinishesTiling Paintwork Joinery Fittings Plumbing (internal and external)PlasteringCivil Works:Paving Landscaping This percentage excludes the costs of employing local unskilled labour. A minimum of 5% of the total number of the appointed emerging subcontractors must be owned by females who have more than 50.1% ownership of their company/organization. SMME represent an important vehicle to address the challenges of job creation, economic growth and equity in our country. SMMEs are playing a critical role in absorbing labour, penetrating new markets and generally expanding economies in creative and innovative ways.F…………………………………..V…………………..T………………………………
A125: 1 | B125: 1 | C125: 19 | D125: 82 | E125: 11.8.1 Sub-contractor Procedure The recommendation will be that the Contractor shall advertise and call for competitive tenders in respect of each portion of the works that are required to be subcontracted. The tenders received are then evaluated by both the Employer and the Contractor. The evaluation panel shall comprises equal representatives from the Employer and from the Contractor. The Contractor shall without delay enter into contract with the successful tendering Subcontractor based on their accepted tender submission. This will promote the cost effective participation and development of smaller registered Contractors in larger valued contracts without losing single point of accountability for projects. This will allow the emerging Contractors to tender for work in a fair, transparent and equitable manner rather than having to negotiate such contracts with the Main Contractor. Also guarantees the participation of Contractors registered in lower Contractor grading designation. F:____________ V:____________ T:_____________ | F125: N/A
A126: 1 | B126: 1 | C126: 19 | D126: 83 | E126: 11.8.2 Sub-contractor MentoringOnce the Sub-contractors have been identified and engaged, the Contractor shall closely monitor their performance in the execution of their contracts. The Contractor will be responsible for drawing implementation plan that will assist in managing the development of Sub-contractors undertaking Labour Intensive work.The Contractor will be responsible for management of the Sub-contractors and to ensure that they comply with all EPWP requirements as set-out in this specification.The Contractor and Sub-contractors will be required to compile monthly progress reports to be submitted with payment certificates. The reports shall include planned targets with regards to the works and employment, employment of EPWP beneficiaries and project expenditure. Failure to produce monthly reports will render payment certificates incompleteThe Contractor will be required to assist, train, mentor and monitor its Sub-contractors and report through monitoring tool on progress of each Sub-contractor.F:____________ V:_____________ T:______________ | F126: N/A
A127: 1 | B127: 1 | C127: 20 | D127: 84 | E127: 11.8.3 Portfolio of EvidenceThe Contractor is to develop and /or maintain a portfolio of evidence for each Sub-contractor. The Portfolio of Evidence is a collection of proof of the training, coaching, guidance and monitoring inputs provided to the Sub-contractor. It is the document which records the development progress of the Sub-Contractor and will need to be updated continually throughout the duration of the contract. The Portfolio of Evidence should include but not limited to the following documentation:The development path designed for each Sub-Contractor,The Training course completed by the Sub-Contractor,The hours of guiding, coaching and mentoring received for each activity listed in the developmental plan,A list of outcomes achieved at each level for each activity.F:_____________ V:_____________ T:_____________ | F127: N/A
A128: 1 | B128: 1 | C128: 20 | E128: Performance and PenaltiesThe Contractor performance will be monitored throughout the contract. Should the Contractor fail to fulfil his obligation he will be liable for penalties. Payment of the penalty shall not absolve the Contractor of any claim, or relieve the Contractor of any of his duties, obligations or responsibilities under the contract. Utilisation of the Sub-ContractorsThe Contractor’s achievement of the targets will be measured quarterly to determine the progress made to date.
A129: 1 | B129: 1 | C129: 20 | D129: 85 | E129: 11.8.4 Local SuppliersLocal material suppliers within the vicinity of the site to be utilise as long as their materials meets the required specification. However, quality and suitability would have to be checked by the Employer, if the local suppliers are unable to meet the demand the nearest suitable suppliers are to be used. Production of materials should be done on site, where economies of scale allow e.g. concrete paving blocks should be encouraged which will enable employment creation and also allow for enterprise development.F:_____________ V:_____________ T:_____________ | F129: N/A
A130: 1 | B130: 1 | C130: 22 | D130: 86 | E130: 11.8.5 TENDERER’S TO NOTE CONDITIONSa) The contract to be entered into between the Contractor and the PPG’s will be a LABOUR ONLY sub-contract.b) The Contractor will be responsible for ensuring that all materials for use by the PPG’s in the works are to be on site timeously. The Contractor shall liaise with the Mentor and PPG to determine the nature and extent of materials required and the lead time necessary.c) The Contractor shall be responsible for the overall programming of the Works and he is to allow for monitoring the PPG’s programme and progress.d) In conjunction with the Mentor, he is to allow for the supervision and mentoring (where necessary) of the PPG to ensure quality and adherence to standard building practice.e) The Contractor is to allow for extra storage facilities on site for the PPG’s tools and equipment.f) Basic tools shall be provided by the PPG’s and where these are not available, the Contractor will supply him with the necessary tools and equipment and deduct the costs thereof from the interim claims made by the PPG.g) Work requiring specialized tools will be provided free of charge by the Contractor with the provision that these be returned upon completion of the Work. CO-ORDINATIONThe Contractor is to co-ordinate the work of all the PPG’s, Sub-Contractors and Nominated Sub- Contractors appointed direct by the Employer in such a manner and at all times as will suit the building programme and he is to allow adequate access, for the PPG’s, where required, to carry out their work in an efficient manner as no claims for extras in this connection will be entertained.ATTENDANCEThe Contractor may allow for attendance upon the PPG’s concerned to execute the work. The Contractor is to allow the PPG’s the use of any scaffolding belonging to him while it remains so erected on the site.Where scaffolding is necessary for the use by any PPG and the Contractor has not erected any for his own use or has removed same after his own use, the Contractor shall supply sufficient scaffolding to the PPG to be erected and dismantled by the PPG and returned to the Contractor.This attendance upon PPG’s to execute the work is to include for the scaffolding provisions as aforesaid and, in addition, is to include for co-operating to the fullest extent with all the parties, attending on off-loading materials, providing suitable storage for tools and materials used by the PPG’s, use of general facilities such as latrines, etc., supply and cost of power, lighting, water and the like.F:_____________ V:_____________ T:_____________ | F130: N/A
A131: 1 | B131: 1 | C131: 22 | E131: E11.9 EPWP CONTRACT FOR LABOUR
A132: 1 | B132: 1 | C132: 22 | D132: 87 | E132: It is compulsory that shortly after the Contractor and or Sub-contractor has appointed local labour, the employment contract should be signed by both parties, prior to commencement with works on site. The employment contract forms part of the Ministerial Determination or from the regional EPWP officials. F:_____________ V:_____________ T:_____________ | F132: Item | G132: 1 | I132: =G132*H132 -> 0
A133: 1 | B133: 1 | C133: 22 | E133: E11.10 EPWP SCOPE OF WORKS FOR THIS PROJECT
A134: 1 | B134: 1 | C134: 22 | D134: 88 | E134: Contractors are to price any item on the Bill of Quantities highlighted below, bearing in mind that they are regarded as main sources of job creation, whether Sub-contracted or undertaken by the Main Contractor.Elements on the scope of work where the application of Labour Intensive Construction methods are indicated with letters (LI) are as follows:i) Excavating trenches for foundations and any other civil works with the depth not more than 1.5 m ii) All masonry works which include concrete mixing on site; brickwork; plastering; screed works; jointing; etc.iii) Painting, Plumbing, Ironmongery; roof cladding; glazing; tilling; carpentry; flooring; waterproofing; etc.iv) External works such as landscaping; cleaning; paving; fencing; tarmac; etc.F:_____________ V:_____________ T:_____________ | F134: Item | G134: 1 | I134: =G134*H134 -> 0
A135: 1 | B135: 1 | C135: 22 | D135: 89 | E135: Provide and maintain a condom dispenser in terms of Clause 5.1a F:____________ V:____________ T:____________ | F135: Item | G135: 1 | I135: 0
A136: 1 | B136: 1 | C136: 23 | D136: 90 | E136: F:____________ V:____________ T:____________ | F136: Item | G136: 1 | I136: 0
A137: 1 | B137: 1 | C137: 23 | D137: 91 | E137: HIV /Aids Awareness Programme on Site for not less than 90% of workers inclusive of all direct and indirect costs; Engage a qualified service provider as described in the scope of works to conduct an HIV Awareness Programme in terms of Clause 5.2.1aF:____________ V:____________ T:____________ | F137: Item | G137: 1 | I137: 0
A138: 1 | B138: 1 | C138: 23 | D138: 92 | E138: Arrange for workers to attend the HIV Awareness Programme in terms of Clause 5.2.1b F:____________ V:____________ T:____________ | F138: Item | G138: 1 | I138: 0
A139: 1 | B139: 1 | C139: 23 | D139: 93 | E139: REPORTING Prepare and attach to claims for payment a brief report in terms of Clause 5.3 (see also HIV/STI Compliance Report (included with this document). F:____________ V:____________ T:____________ | F139: Item | G139: 1 | I139: 0
A140: 1 | B140: 1 | C140: 23 | D140: 94 | E140: OCCUPATIONAL HEALTH AND SAFETY ACT NO. 85 OF 1993 Tenderers are to allow for all costs in providing a project specific ' Construction Phase Safety, Health and Environmental Plan' in accordance with Annexure 6, the project specific Health and Safety specification. F:____________ V:____________ T:____________ | F140: Item | G140: 1 | I140: 0
A141: 1 | B141: 1 | C141: 23 | D141: 95 | E141: NOTICE BOARD, SITE OFFICE, ETC Bidders are to allow for the provision and removal of a project notice board and a site office in accordance with the Engineers requirements. F:____________ V:____________ T:____________ | F141: Item | G141: 1 | I141: 0
A142: 1 | B142: 1 | C142: 23 | D142: 96 | E142: IMPORTED MATERIALS AND EQUIPMENT Where imported items are listed in the tender documents, the tenderer shall provide all information called for, failing which the price of any such item, material or equipment shall be excluded from currency fluctuations. F:____________ V:____________ T:____________ | F142: Item | G142: 1 | I142: 0
A143: 1 | B143: 1 | C143: 24 | D143: 97 | E143: CONTRACT DOCUMENTSThe drawings issued with these Bid documents do not comprise the complete set but serves as a guide only for Bidding purposes and for indicating the scope of works to enable the Tenderer to acquaint him with the nature and extent of the works and the manner in which they are to be executed.Should any part of the drawings not be clearly legible to the Tenderer he shall, before submitting his Bid, obtain clarification in writing from the Engineer. F:____________ V:____________ T:____________ | F143: Item | G143: 1 | I143: 0
A144: 1 | B144: 1 | C144: 24 | D144: 98 | E144: GENERAL PREAMBLES The Document Preambles will be the “ASAQS General Preambles for Trades (2017 edition)” and shall be read in conjunction with the Bills of Quantities and be referred to for the full descriptions of work to be done and materials to be used. F:____________ V:____________ T:____________ | F144: Item | G144: 1 | I144: 0
A145: 1 | B145: 1 | C145: 24 | D145: 99 | E145: TRADE NAMES Wherever a Trade Name for any product has been described in the Bills of Quantities the Tenderer's attention is drawn to the fact that any other product of equal quality may be used subject to the written approval of the Engineer being obtained prior to the closing date for submission of Bids. F:____________ V:____________ T:____________ | F145: Item | G145: 1 | I145: 0
A146: 1 | B146: 1 | C146: 24 | D146: 100 | E146: E19
A147: 1 | B147: 1 | C147: 25 | D147: 101 | E147: INACCURATE AND DEFECTIVE WORK EXECUTED UNDER PREVIOUS CONTRACT The contractor shall, after taking possession of the site and before commencing the work, check all levels, liners, profiles and the like and satisfy himself as to the dimensional accuracy of all work executed under the previous contract which may affect his work. Should any inaccurate or defective work be found, the contractor shall immediately notify the Engineer in writing requesting his instructions with regard thereto and afford every facility to those rectifying such inaccurate or defective work. F:____________ V:____________ T:____________ | F147: Item | G147: 1 | I147: =G147*H147 -> 0
A148: 1 | B148: 1 | C148: 25 | D148: 102 | E148: VIEWING THE SITE IN SECURITY AREAS If the site is situated in a security area, the Tenderer must arrange with the Authorities to obtain permission to enter the site for Bidding purposes. F:____________ V:____________ T:____________ | F148: Item | G148: 1 | I148: 0
A149: 1 | B149: 1 | C149: 25 | D149: 103 | E149: COMMENCEMENT OF WORKS IN SECURITY AREAS If the works falls within a security area, the contractor must arrange with the Authorities and give the necessary notices before commencement of the works. Should the contractor fail to make such arrangements, admission to the site may be refused and any additional costs will be for the contractor's account. F:____________ V:____________ T:____________ | F149: Item | G149: 1 | I149: 0
A150: 1 | B150: 1 | C150: 25 | D150: 104 | E150: ENTRANCE PERMITS TO SECURITY AREAS If the works fall within a security area, the contractor shall obtain entrance permits for his personnel and workmen entering the area and shall comply with all regulations and instructions which may be issued from time to time regarding the protection of persons and property under control of the Authority. F:____________ V:____________ T:____________ | F150: Item | G150: 1 | I150: 0
A151: 1 | B151: 1 | C151: 26 | D151: 105 | E151: SECURITY CHECK OF PERSONNEL The Engineer may require the contractor to have his personnel and workmen, or a certain number of them, security classified. In the event of the Engineer requesting the removal of a person or persons from the works for security reasons, the contractor shall do so forthwith and shall thereafter ensure that such person or persons are denied access to the works and the site and/or to any document or information relating to the works. F:____________ V:____________ T:____________ | F151: Item | G151: 1 | I151: 0
A152: 1 | B152: 1 | C152: 26 | D152: 106 | E152: PROHIBITION ON TAKING PHOTOGRAPHS In terms of article 119 of the Defence Act, 44 of 1957, it is prohibited to sketch or to take photographs of any military site or installation or any building or civil works thereon or to be in possession of a camera or other apparatus used for taking photographs, except when authorised thereto by or on behalf of the Minister." The same prohibition is also applicable to all Correctional Institutions in terms of article 44.1(e) of the Correctional Services Act 8 of 1959. F:____________ V:____________ T:____________ | F152: Item | G152: 1 | I152: 0
A153: 1 | B153: 1 | C153: 26 | D153: 108 | E153: PROTECTION OF EXISTING Every care shall be taken to protect all parts of the building and ground against disfigurement of any kind. The contractor shall be responsible for any damage caused to vehicles, persons or property by his operations, and he will be required to supply and maintain such temporary measures as are required, to prevent such damage. F:____________ V:____________ T:____________ | F153: Item | G153: 1 | I153: 0
A154: 1 | B154: 1 | C154: 27 | D154: 109 | E154: ACCESS The contractor is to allow for all costs associated with sites having restricted access due to location, road conditions, etc. The contractor to note the site has extremely restricted access and in some instances , restricted access may affect the delivery of materials etc. The contractor to accordingly ensure the most suitable and effective access routes are investigated and implemented to achieve continuity of the works. F:____________ V:____________ T:____________ | F154: Item | G154: 1 | I154: 0
A155: 1 | B155: 1 | C155: 27 | D155: 110 | E155: SAFETY TO THE SITE All scaffolding, protection, machinery and tools on the site shall be erected, used and/or maintained in accordance of the requirements of the Occupational Health and Safety Act (85/1993) as amended and any regulations thereto. All relevant local authority bylaws shall also be complied with. The contractor to provide suitable hoarding to demarkate the area of the construction works from the other adjacent operational areas. All open excavations and incomplete construction work to be cordined off with danger tape. F:____________ V:____________ T:____________ | F155: Item | G155: 1 | I155: 0
A156: 1 | B156: 1 | C156: 27 | D156: 111 | E156: ASBESTOS CEMENT All preparatory work, alterations, demolitions, etc. to existing asbestos cement roof sheeting, gutters, rainwater pipes, etc. are to be carried out strictly in accordance with statutory requirements (Occupational Health and Safety Act, 1993 - Asbestos Regulations, 2001) and all necessary precautions must be taken when working with and disposing of asbestos cement products and the disposing of waste resulting from cleaning operations, etc. Allowance is to be made for costs associated with compliance with these Regulations. F:____________ V:____________ T:____________ | F156: Item | G156: 1 | I156: 0
A157: 1 | B157: 1 | C157: 27 | D157: 112 | E157: EXISTING PREMISES OCCUPIED The Contractor shall carry out the whole of the works with as little mess and noise as possible and with a minimum of disturbance to adjoining building and occupants. He shall provide proper protection and provide, erect and remove when directed, any temporary tarpaulins, temporary fences that may be necessary during the progress of the works, all to the satisfaction of the Engineer. F:____________ V:____________ T:____________ | F157: Item | G157: 1 | I157: 0
A158: 1 | B158: 1 | C158: 28 | D158: 113 | E158: COMMUNITY LIAISON OFFICER (CLO) The Contractor shall allow for and pay any and all costs necessary for the engagement of the services of a Community Liaison Officer (CLO) for the full duration of this contract. A CLO will be identified by the local structures (Project Steering Committee) of the ward areas and appointed, following fair and transparent interviewing process, to be conducted in the presence of local structures and the Contractor representative, in order to assist the Contractor in the procurement of any local labour, etc. required for this project. The Contractor is to liaise with the CLO and afford him any assistance needed in ensuring sound working relations with the local community. F:____________ V:____________ T:____________ | F158: Item | G158: 1 | I158: 0
A159: 1 | B159: 1 | C159: 28 | D159: 114 | E159: SITE SECURITY The contractor shall allow for site security, which shall be responsible for removal of disruptive elements, that may interrupt the progress of the contract through acts such as, but not limited to, intimidation, threats of disruption, violent disruption, or criminal and illegal activity by the local community or independent organisations or entities that may result in slowing down or partial or total stoppage of the works. F:____________ V:____________ T:____________ | F159: Item | G159: 1 | I159: 0
A160: 1 | B160: 1 | C160: 28 | E160: E34 PENALTY FOR POWER INTERRUPTIONIt is required that the Contractor take all necessary steps tomitigate power interruptions to the facility or any part of thefacility due to negligence. F: ___________ V: ____________ T:____________ | F160: Item | G160: 1 | I160: 0
A161: 1 | B161: 1 | C161: 28 | E161: E35 SITE REPRESENTATIVE The names of the contractor's proposed management team shall be submitted to the Engineer prior to commencement on site and after the Engineer's agreement on the composition and competence thereof has been obtained, no changes shall be made nor shall any member of the team be removed from the project while remaining in the employ of the contractor, without the Engineer's prior written approval F: ___________ V: ____________ T:____________ | F161: Item | G161: 1 | I161: 0
A162: 1 | B162: 1 | C162: 29 | E162: E36 WORKS RISK The use or occupation, after practical completion, of any part of the works by the employer, the employers servants or agents and those for whose acts or omissions they are responsible. F: ___________ V: ____________ T:____________ | F162: Item | G162: 1 | I162: 0
A163: 1 | B163: 1 | C163: 29 | E163: E37 GENERAL INSURANCES The contractor may, at his own cost, effect any insurances additional to that specified above which he deems necessary in his own interest to cover loss or damage not insured in terms of the insurances specified. Not withstanding anything contrary contained in this document, the contractor shall be liable for the deductible in all instances of a claim being made in terms of the insurance policies effected where the contractor is at risk for the damage F: ___________ V: ____________ T:____________ | F163: Item | G163: 1 | I163: 0
A164: 1 | B164: 1 | C164: 29 | E164: E38 WORKS RISK The use or occupation, after practical completion, of any part of the works by the employer, the employers servants or agents and those for whose acts or omissions they are responsible. F: ___________ V: ____________ T:____________ | F164: Item | G164: 1 | I164: 0
A165: 1 | B165: 1 | C165: 30 | E165: E39 SECURITY The contractor shall ensure that the construction guarantee is valid and enforceable until the certificate of practical completion is issued to the contractor and all payments reflected as due to the employer in the final payment certificate have been paid in full (herein after collectively "the expiry events"). If the terms of the construction guarantee specify its expiry date and the expiry events have not occurred 20(twenty) working days prior to the said expiry date, the contractor shall promptly extend the validity of the construction guarantee until the expiry events have occurred. If the contractor fails to extend the validity of the construction guarantee, the employer shall be entitled to payment from the contractor of the then guaranteed sum, which shall be retained by the employer as cash security. The Engineer shall accordingly and immediately issue a payment certificate certifying the guaranteed sum as a payment due to the employer. If the contractor fails to make payment of the amount certified upon presentation of the payment certificate, the employer may claim the amount under the construction guarantee. Should the contractor be a joint venture, then each entity shall be jointly and severably liable to the employer for all obligations and liabilities in terms of this agreement. The amount so claimed against and paid under the construction guarantee shall be reimbursed by the contractor if and when the construction guarantee is reinstated, extended or substituted in compliance with the above (as case may be) and the Engineer shall forthwith issue a payment certificate certifying the amount so due to the contractor. F: ___________ V: ____________ T:____________ | F165: Item | G165: 1 | I165: 0
A166: 1 | B166: 1 | C166: 31 | E166: E40 PREPARATION FOR AND EXECUTION OF THE WORKSImmediately on award of the contract and prior to the commencement on site, the contractor, in conjunction with the Engineer, shall agree the programme covering the first month of the construction period. During the first month of the construction period the contractor shall prepare and draw up in conjunction with the Engineer the programme for the balance of the works.The Engineer shall have the right to modify such programme to accommodate changes necessary, in its opinion for coordinating the works as a whole.The contractor shall be responsible at all times for maintaining the accuracy, validity and reasonableness of the programme and implementation thereof. The programme shall be compiled based on the critical path method of programming and the critical activities are to be clearly highlighted. It shall be compiled in such a way that logic is not constrained by resource limitations unless specifically agreed otherwise by the Engineer. Quantities contained in the bill of quantities are provisional and shall be utilized as a guide only for the drawing up of the programme. Should the circumstances change to the extent where the contractor is of the opinion that changes to the programme are required, then the contractor shall submit a written request to the Engineer for such changes, clearly identifying the reasons for requiring such change. The contractor and Engineer shall thereafter agree such changes, if any. Should the Engineer be of the opinion that the programme requires revisions and not withstanding the fact that the request for such revision has not been received by the contractor, the Engineer shall be entitled to instruct the contractor to revise the programme accordingly, unless the contractor can submit reasonable justification for not doing so.The Contractor must provide a programme taking into consideration the decanting plan and all its associated activities. This programme is to be updated weekly and presented to the Engineer including the identification of all the activities that are delayed and the proposed plan for corrective action.F: ___________ V: ____________ T:____________ | F166: Item | G166: 1 | I166: 0
A167: 1 | B167: 1 | C167: 31 | E167: E41 TEMPORARY WORKS AND PLANTS Office accommodation suitable for fifteen (15) persons for meetings held on the site is to be instated and shall be kept clean and fit for use by any employers agents at all times F: ___________ V: ____________ T:____________ | F167: Item | G167: 1 | I167: 0
A168: 1 | B168: 1 | C168: 32 | E168: E42 COMPLETIONThe contractor shall not receive any mark-up for overheads and profit on any omission of tenant installation work by others. Claims of loss of profit shall not be entertained.In order to achieve practical completion of the various sections of works and without derogating from the generality of the term practical completion, the contractor shall, as a minimum, comply with the following basic criteria. These criteria should not be regarded as comprehensive but as an expansion of the term practical completion. ACCESSAt the date of practical completion, all building entry and exit points including all fire escape routes and staircases must be fully completed with unobstructed access in every respect.SECURITYAll buildings to be handed over must be secure, doors fitted and lockable and all security and access control systems to be operative. All keys to be marked and tagged for handover. After practical completion, no person shall be allowed to access the facilities without prior consent by the occupants or management.ELECTRICALElectrical installation is to be completed and fully commissioned permanent power and lighting inclusive of all telephone and data installations.PLUMBINGPlumbing installation to be complete, commissioned permanent water supply and drainage tested. Pipework to be pressure tested.SPRINKLERS AND FIRE FIGHTING EQUIPMENTCompleted, commissioned tested and operational.FLOORS, CEILINGS AND GENERAL FINISHESCompleted and finished in accordance with Architect's layouts, interior specifications and schedules. All equipment to be installed, connected, commissioned and tested.All defects noted on the quality control sheets issued by the Engineer of the employer during the currency of the contract are to have been completed and attended to in their entirety.F: ___________ V: ____________ T:____________ | F168: Item | G168: 1 | I168: 0
A169: 1 | B169: 1 | C169: 33 | E169: E43 DECANTING PLAN Compliance with the preliminary decanting and phasing plan The Tenderer to price for all costs associated with the decanting and phasing plan inclusive of hoarding and barricades, alternate access, protection of the existing work, etc. F: ___________ V: ____________ T:____________ | F169: Item | G169: 1 | I169: 0
A170: 2 | B170: 1 | C170: 34 | E170: SECTION NO.2 | F170: H1
A171: 2 | B171: 1 | C171: 34 | E171: BILL NO.1 | F171: H1
A172: 2 | B172: 1 | C172: 34 | E172: ALTERATIONS AND DEMOLITIONS | F172: H1
A173: 2 | B173: 1 | C173: 34 | E173: (CPAP WORK GROUP NO.102 UNLESS OTHERWISE STATED) | F173: H1
A174: 2 | B174: 1 | C174: 34 | E174: The Contractor is referred to the relevant applicable Preambles in the annexed KZN DOH Standard Preambles to all Trades Rev. 3 Jan. 2009, KZN DOH General Electrical Specifications Sept. 2003, Project Specifications, etc. and the General Preambles to all trades (2017)
A175: 2 | B175: 1 | C175: 34 | E175: Unless otherwise stated herein, all items in this Bill shall be deemed to fall into Work Group No.102 for CPAP purposes.
A176: 2 | B176: 1 | C176: 34 | E176: SUPPLEMENTARY PREAMBLES | F176: H2
A177: 2 | B177: 1 | C177: 34 | E177: Work and materials | F177: H3
A178: 2 | B178: 1 | C178: 34 | E178: The work to be done and the materials to be used in the works on site are to be similar to those specified in the new work so as they apply.
A179: 2 | B179: 1 | C179: 34 | E179: Old materials | F179: H3
A180: 2 | B180: 1 | C180: 34 | E180: Old materials specified to be set aside for re-use are to be carefully removed, dismantled as necessary, cleaned, stored, protected from weather and injury, repaired, overhauled and made good before re fixing.Old materials specified to be handed over are to be carefully made good and stored on the site where directed.
A181: 2 | B181: 1 | C181: 35 | E181: Demolitions | F181: H3
A182: 2 | B182: 1 | C182: 35 | E182: All demolition work is to be carried out in accordance with the Local by-laws and to the requirements of the Local Health Authorities. All demolition is to be carried out in strict accordance with the instructions and to the satisfaction of the Principal Agent.
A183: 2 | B183: 1 | C183: 35 | E183: Temporary coverings, screens, etc. | F183: H3
A184: 2 | B184: 1 | C184: 35 | E184: The Contractor will be held responsible for any damage to property or goods in the existing buildings due to his not having taken adequate precautions and all damage caused is to be made good at his own expense. He must allow for providing all necessary plastic or wood framed screens, partitions, tarpaulins, barriers, etc. to protect the work and prevent any nuisance from dust as may be required or directed.
A185: 2 | B185: 1 | C185: 35 | E185: Damage to persons or property | F185: H3
A186: 2 | B186: 1 | C186: 35 | E186: The Contractor will be held responsible for any damage to persons and property and for the safety of the structures and is to allow for protecting and indemnifying persons using the existing buildings from injury by virtue of the building operations, including providing necessary barriers, signs, etc.
A187: 2 | B187: 1 | C187: 35 | E187: Making good | F187: H3
A188: 2 | B188: 1 | C188: 35 | E188: Prices of all works described throughout these Bills of Quantities are to include for making good, whether specifically mentioned or not in all trades except painting, unless otherwise described.
A189: 2 | B189: 1 | C189: 36 | E189: The Contractor must make good to existing work damaged or disturbed through alterations and to existing work remaining after doors, windows, screens, fittings, walls, etc. are removed, by fitting in short lengths of skirting, architrave's, etc. and taking out and making good suspended ceilings and floors on necessary joists, etc. plaster finishing to walls and ceilings and rendering, floor tiles, etc. to floors and for facing up walls with brickwork cut, toothed and bonded to existing with facing bricks, quarry tiles or common brickwork to receive finishing, unless otherwise described.
A190: 2 | B190: 1 | C190: 36 | E190: All new materials in making good are to match existing and the work is to be left complete and perfect in every respect.
A191: 2 | B191: 1 | C191: 36 | E191: Breaking down | F191: H3
A192: 2 | B192: 1 | C192: 36 | E192: Breaking down walls is to include for breaking down faced brick, tiled or plastered walls, concrete beams or lintels occurring in same, for removing skirting, quadrants, cornices, pipework in walls, etc. fixed to same, for hacking up flooring in openings and for making good as previously described to walls, floors, ceilings, etc. unless otherwise described.
A193: 2 | B193: 1 | C193: 36 | E193: Cutting through, etc. | F193: H3
A194: 2 | B194: 1 | C194: 36 | E194: Cutting away from, breaking or cutting through is to include for neatly cutting through brick or concrete walls, floors, skirting, etc. leaving ends fair or preparing ends for extension, for facing up jambs, reveals, etc. with brickwork cut, toothed and bonded to existing and for flushing up concrete jambs, reveals, etc. in cement mortar.
A195: 2 | B195: 1 | C195: 36 | E195: Taking out | F195: H3
A196: 2 | B196: 1 | C196: 36 | E196: Taking out doors, screens, windows, fittings, etc. are to include for their removal complete with frames, ironmongery, glass, etc. for removing architrave's, quadrants, skirting, blinds, burglar guards and all accessories to walls, reveals and around openings, for cutting out cills, etc. hacking up flooring in openings and for making good as previously described to walls, reveals, etc. unless otherwise described.
A197: 2 | B197: 1 | C197: 37 | E197: Taking out chalkboards, pinning boards, etc. is to include for their removal complete with surrounds, bearers, brackets, etc.
A198: 2 | B198: 1 | C198: 37 | E198: Taking out shelves is to include for their removal complete with bearers, brackets, etc.
A199: 2 | B199: 1 | C199: 37 | E199: Taking out cupboards, desks, bench fittings, bookshelves, etc. is to include for dismantling as necessary and their removal complete with doors, shelving, framing, bearers, raised bases, etc.
A200: 2 | B200: 1 | C200: 37 | E200: Building up openings | F200: H3
... 1320 more rows
